bitfinex-derivatives/quotes_BTCF0:USTF0_20251202
["timestamp","ask_amount","ask_price","bid_price","bid_amount"]
[1764646760110,0.02498972,86465.0,86464.0,0.27946]
[1764646760300,0.13039972,86465.0,86464.0,0.27946]
[1764646760614,0.23306972,86465.0,86464.0,0.27946]
[1764646762102,0.00017341,86465.0,86464.0,0.64026]
[1764646762810,0.20825341,86465.0,86464.0,0.64026]
[1764646764412,0.10558341,86465.0,86464.0,0.64026]
[1764646764609,0.00017341,86465.0,86464.0,0.64026]
[1764646764812,0.20825341,86465.0,86464.0,0.64026]
[1764646765015,0.00017341,86465.0,86464.0,0.64026]
[1764646766025,0.64825341,86465.0,86464.0,0.57896]
[1764646772931,0.0115671,86458.0,86457.0,0.0613]
[1764646773242,0.0115671,86458.0,86448.0,0.36097341]
[1764646773243,0.23895,86454.0,86453.0,0.18392]
[1764646773428,0.61162,86454.0,86453.0,0.18392]
[1764646773737,0.6231876,86454.0,86453.0,0.18392]
[1764646774839,0.19162,86454.0,86453.0,0.18392]
[1764646775041,0.30162,86454.0,86453.0,0.18392]
[1764646775436,0.55242,86460.0,86459.0,0.1954869]
[1764646775638,0.50637047,86460.0,86459.0,0.1954869]
[1764646777427,0.31475047,86460.0,86459.0,0.1954869]
[1764646777627,0.21637047,86460.0,86459.0,0.1954869]
[1764646782843,0.19162,86458.0,86457.0,0.3608]
[1764646783144,0.19162,86458.0,86455.0,0.0115675]
[1764646783145,0.19162,86456.0,86455.0,0.0115675]
[1764646783332,0.61637047,86456.0,86455.0,0.0115675]
[1764646783531,0.19162,86449.0,86448.0,0.45399341]
[1764646783727,0.56162,86449.0,86448.0,0.46556181]
[1764646784145,0.56162,86449.0,86448.0,0.55646181]
[1764646784732,0.58638002,86449.0,86448.0,0.55646181]
[1764646785034,0.58638002,86449.0,86448.0,0.54489341]
[1764646785227,0.58638002,86449.0,86448.0,0.36097341]
[1764646785639,0.58638002,86449.0,86448.0,0.00017341]
[1764646787233,0.2031892,86442.0,86441.0,8.435e-05]
[1764646787443,0.19162,86429.0,86421.0,0.3608]
[1764646787640,0.63162,86429.0,86428.0,0.556291]
[1764646788441,0.63170435,86429.0,86428.0,0.556291]
[1764646790445,0.68970435,86429.0,86421.0,0.3608]
[1764646790647,0.19162,86426.0,86425.0,0.1954914]
[1764646790843,0.52162,86426.0,86425.0,0.1954914]
[1764646791549,0.52162,86426.0,86425.0,0.18392]
[1764646792048,0.52162,86426.0,86425.0,0.1954915]
[1764646792264,0.26162,86426.0,86425.0,0.1954915]
[1764646792950,0.54162,86426.0,86425.0,0.18392]
[1764646793745,8.435e-05,86429.0,86428.0,0.18392]
[1764646793951,8.435e-05,86429.0,86428.0,0.54472]
[1764646796556,0.00017351,86437.0,86436.0,0.25245]
[1764646796756,0.00017351,86437.0,86436.0,0.61325]
[1764646797455,0.55242,86453.0,86452.0,0.1954879]
[1764646797656,0.3608,86462.0,86452.0,0.1954879]
[1764646797657,0.3608,86462.0,86461.0,0.18392]
[1764646797847,0.4308,86462.0,86461.0,0.18392]
[1764646798047,0.16626,86462.0,86461.0,0.18392]
[1764646798256,0.26162,86462.0,86461.0,0.18392]
[1764646798561,0.59162,86462.0,86461.0,0.18392]
[1764646800659,0.17626,86462.0,86461.0,0.18392]
[1764646800855,0.19162,86456.0,86455.0,0.5562874]
[1764646801055,0.27162,86456.0,86455.0,0.5562874]
[1764646801362,0.36097351,86470.0,86469.0,0.09302]
[1764646801664,0.00017351,86470.0,86469.0,0.18392]
[1764646802256,0.19179351,86470.0,86469.0,0.18392]
[1764646804350,0.09643351,86470.0,86469.0,0.18392]
[1764646804557,0.00017351,86470.0,86469.0,0.18392]
[1764646804854,0.00017351,86470.0,86469.0,0.54472]
[1764646805258,1e-08,86470.0,86469.0,0.54472]
[1764646806953,0.17670001,86470.0,86469.0,0.54472]
[1764646807160,0.01308,86464.0,86459.0,0.3608]
[1764646807470,0.01308,86464.0,86460.0,0.1822]
[1764646807471,0.1767,86461.0,86460.0,0.1822]
[1764646807656,1e-08,86470.0,86460.0,0.1822]
[1764646807857,0.41581285,86470.0,86469.0,0.1822]
[1764646808066,0.1767,86465.0,86464.0,0.0115662]
[1764646808266,0.3367,86465.0,86464.0,0.0115662]
[1764646808861,0.3367,86465.0,86464.0,0.1045862]
[1764646809064,0.3367,86465.0,86464.0,0.1937662]
[1764646809751,0.3367,86465.0,86464.0,0.2459662]
[1764646810154,0.5067,86465.0,86464.0,0.1937662]
[1764646810358,0.5067,86465.0,86464.0,0.0115662]
[1764646811470,0.1767,86460.0,86459.0,0.5545668]
[1764646811767,0.5067,86460.0,86459.0,0.5545668]
[1764646812464,0.1767,86460.0,86459.0,0.5545668]
[1764646812763,0.45356,86460.0,86459.0,0.5545668]
[1764646812968,0.19356,86460.0,86459.0,0.5545668]
[1764646813166,0.32581284,86469.0,86468.0,0.1937657]
[1764646813355,0.1767,86469.0,86468.0,0.1937657]
[1764646813666,0.4367,86469.0,86468.0,0.1937657]
[1764646814058,0.46134254,86469.0,86468.0,0.1937657]
[1764646814268,0.4367,86469.0,86468.0,0.1937657]
[1764646814670,0.35356,86469.0,86468.0,0.1937657]
[1764646815765,0.4367,86469.0,86468.0,0.1937657]
[1764646816166,0.26,86469.0,86460.0,0.09302]
[1764646816368,0.1767,86465.0,86464.0,0.0115662]
[1764646816568,0.3267,86465.0,86464.0,0.0115662]
[1764646816773,0.1767,86460.0,86459.0,0.45382]
[1764646816956,0.5367,86460.0,86459.0,0.45382]
[1764646817372,0.5367,86460.0,86459.0,0.543]
[1764646818773,0.5367,86460.0,86459.0,0.1822]
[1764646819965,0.3584824,86460.0,86459.0,0.1822]
[1764646820261,0.4314224,86460.0,86459.0,0.1822]
[1764646823777,0.4314224,86460.0,86456.0,0.3608]
[1764646823778,0.07294,86457.0,86456.0,0.3608]
[1764646823965,0.07294,86454.0,86446.0,0.3723687]
[1764646824163,0.48762581,86454.0,86438.0,0.3608]
[1764646824368,0.48762581,86454.0,86439.0,0.0115696]
[1764646824667,0.48762581,86454.0,86439.0,0.1045896]
[1764646824668,0.07294,86440.0,86439.0,0.1045896]
[1764646824858,0.45294,86440.0,86439.0,0.1937696]
[1764646825875,0.07294,86439.0,86438.0,0.3608]
[1764646826176,0.50294,86439.0,86438.0,0.45382]
[1764646826370,0.50294,86439.0,86438.0,0.543]
[1764646826571,0.50194,86439.0,86438.0,0.543]
[1764646826877,0.07194,86439.0,86438.0,0.5545697]
[1764646827073,0.25894,86439.0,86438.0,0.5545697]
[1764646827273,0.25894,86439.0,86431.0,0.00017351]
[1764646827274,0.4805096,86439.0,86431.0,0.00017351]
[1764646827482,0.06494,86432.0,86431.0,0.10476421]
[1764646827666,0.22494,86432.0,86431.0,0.10476421]
[1764646827868,0.22494,86432.0,86431.0,0.19394421]
[1764646829869,0.22594,86432.0,86431.0,0.18237351]
[1764646830067,0.49594,86432.0,86431.0,0.18237351]
[1764646830265,0.49894,86432.0,86431.0,0.18237351]
[1764646830467,1.09360238,86432.0,86431.0,0.00017351]
[1764646831976,1.09260238,86432.0,86431.0,0.00017351]
[1764646832173,1.09360238,86432.0,86431.0,0.00017351]
[1764646832474,1.06113238,86432.0,86431.0,0.00017351]
[1764646832982,0.52357238,86432.0,86431.0,0.17688351]
[1764646833481,0.52557238,86432.0,86431.0,0.00017351]
[1764646836978,0.52557238,86432.0,86431.0,0.17688351]
[1764646837178,0.50094,86432.0,86431.0,0.17688351]
[1764646837678,0.21094,86432.0,86431.0,0.17688351]
[1764646837879,0.146,86432.0,86431.0,0.17688351]
[1764646838181,0.46234,86432.0,86431.0,0.17688351]
[1764646838869,0.46134,86432.0,86431.0,0.17688351]
[1764646839070,0.15134,86432.0,86431.0,0.17688351]
[1764646839282,0.38134,86432.0,86431.0,0.17688351]
[1764646839485,0.37634,86432.0,86431.0,0.17688351]
[1764646839782,0.38134,86432.0,86431.0,0.17688351]
[1764646840678,0.015,86432.0,86431.0,0.17688351]
[1764646841482,0.005,86432.0,86431.0,0.17688351]
[1764646841784,0.04217,86432.0,86431.0,0.17688351]
[1764646842084,0.08034,86432.0,86431.0,0.17688351]
[1764646842882,0.07934,86432.0,86431.0,0.17688351]
[1764646843376,0.07634,86432.0,86431.0,0.17688351]
[1764646843580,0.07934,86432.0,86431.0,0.17688351]
[1764646844280,0.003,86432.0,86431.0,0.17688351]
[1764646848091,0.48934,86432.0,86431.0,0.17688351]
[1764646849693,0.003,86432.0,86431.0,0.17688351]
[1764646852489,0.23552319,86441.0,86440.0,0.17671]
[1764646852692,0.38102332,86441.0,86440.0,0.17671]
[1764646853683,0.38502332,86441.0,86440.0,0.1882795]
[1764646854896,0.38602332,86441.0,86440.0,0.1882795]
[1764646855097,0.04968332,86441.0,86440.0,0.1882795]
[1764646855488,0.04868332,86441.0,86440.0,0.1882795]
[1764646855991,0.02868332,86441.0,86440.0,0.1882795]
[1764646856389,0.004,86441.0,86440.0,0.1882795]
[1764646856986,0.001,86441.0,86440.0,0.1882795]
[1764646857280,0.003,86441.0,86440.0,0.1882795]
[1764646858586,0.00017351,86448.0,86447.0,0.1882785]
[1764646858785,0.44314859,86448.0,86447.0,0.1882785]
[1764646859091,0.48131859,86448.0,86447.0,0.1882785]
[1764646859806,0.10531859,86448.0,86447.0,0.1882785]
[1764646860095,0.07897859,86448.0,86447.0,0.1882785]
[1764646860293,0.07997859,86448.0,86447.0,0.1882785]
[1764646860593,0.02997859,86448.0,86447.0,0.1882785]
[1764646860991,0.51814859,86448.0,86447.0,0.1882785]
[1764646861198,0.02997859,86448.0,86447.0,0.1882785]
[1764646861398,0.00517351,86448.0,86447.0,0.1882785]
[1764646863497,0.53764,86457.0,86456.0,0.1801873]
[1764646863692,0.56241539,86457.0,86456.0,0.1801873]
[1764646864405,0.02477539,86457.0,86456.0,0.1801873]
[1764646864703,0.02577539,86457.0,86456.0,0.19174852]
[1764646864903,0.02777539,86457.0,86456.0,0.19174852]
[1764646865398,0.003,86457.0,86456.0,0.19174852]
[1764646865791,0.003,86457.0,86456.0,0.16862]
[1764646868302,0.44996,86457.0,86456.0,0.16862]
[1764646868502,0.47470809,86457.0,86456.0,0.16862]
[1764646869606,0.45774809,86457.0,86456.0,0.16862]
[1764646870008,0.49166809,86457.0,86456.0,0.16862]
[1764646871408,0.49166809,86457.0,86456.0,0.1801873]
[1764646872610,0.26166809,86457.0,86456.0,0.1801873]
[1764646875310,0.22774809,86457.0,86456.0,0.1801873]
[1764646877814,0.02774809,86457.0,86456.0,0.1801873]
[1764646878414,0.003,86457.0,86456.0,0.1801873]
[1764646879307,0.0447147,86457.0,86456.0,0.1801873]
[1764646879508,0.27990645,86457.0,86456.0,0.16862]
[1764646887017,0.3608,86464.0,86455.0,0.0115674]
[1764646887320,0.5408,86464.0,86463.0,0.1801864]
[1764646887709,0.15909156,86473.0,86472.0,0.2284552]
[1764646887909,0.33,86473.0,86472.0,0.2284552]
[1764646888714,0.09,86473.0,86472.0,0.2284552]
[1764646889507,0.2209674,86482.0,86474.0,0.16862]
[1764646889715,0.51989156,86484.0,86483.0,0.1801837]
[1764646889914,0.6908,86484.0,86483.0,0.1801837]
[1764646890118,0.7108,86484.0,86483.0,0.1801837]
[1764646890718,0.7108,86484.0,86483.0,0.16862]
[1764646891111,0.0115637,86483.0,86478.0,0.20988]
[1764646891314,0.4015637,86483.0,86478.0,0.2214444]
[1764646891515,0.02472677,86482.0,86478.0,0.2214444]
[1764646891813,0.02472677,86481.0,86480.0,0.16161]
[1764646892013,0.46472677,86481.0,86480.0,0.16161]
[1764646895927,0.15472677,86481.0,86480.0,0.16161]
[1764646896924,0.02472677,86481.0,86480.0,0.16161]
[1764646897131,0.3608,86484.0,86481.0,0.011564]
[1764646897340,0.5308,86484.0,86483.0,0.16332]
[1764646897535,0.02469041,86484.0,86483.0,0.16332]
[1764646898237,0.0115628,86490.0,86478.0,0.04827]
[1764646898432,0.4415628,86490.0,86489.0,0.16332]
[1764646898641,0.4662484,86490.0,86489.0,0.16332]
[1764646900336,0.4662484,86490.0,86485.0,0.13277]
[1764646900337,0.0115633,86486.0,86485.0,0.13277]
[1764646900533,0.4115633,86486.0,86485.0,0.21286]
[1764646900734,0.4362489,86486.0,86485.0,0.21286]
[1764646903136,0.4246856,86486.0,86485.0,0.21286]
[1764646903335,0.1546856,86486.0,86485.0,0.21286]
[1764646903635,0.4246856,86486.0,86485.0,0.21286]
[1764646907131,0.1746856,86486.0,86485.0,0.21286]
[1764646907634,0.0246856,86486.0,86485.0,0.21286]
[1764646908431,0.53732,86497.0,86485.0,0.21286]
[1764646908432,0.0129,86508.0,86507.0,0.16332]
[1764646908643,0.2229,86508.0,86507.0,0.16332]
[1764646908941,0.2358,86508.0,86507.0,0.16332]
[1764646909145,0.21,86508.0,86507.0,0.16332]
[1764646909333,0.3866,86513.0,86512.0,0.16332]
[1764646909538,0.8066,86513.0,86512.0,0.16332]
[1764646910731,0.4766,86513.0,86512.0,0.16332]
[1764646911728,0.4508,86513.0,86512.0,0.16332]
[1764646911932,0.15998,86530.0,86529.0,0.16332]
[1764646912145,0.15998,86530.0,86529.0,0.52412]
[1764646912443,0.05,86536.0,86535.0,0.1748768]
[1764646913033,0.20998,86536.0,86535.0,0.1748768]
[1764646913752,0.04974191,86536.0,86535.0,0.1748768]
[1764646914050,0.04974191,86536.0,86535.0,0.9356768]
[1764646914051,1e-08,86536.0,86535.0,0.9356768]
[1764646914943,1e-08,86536.0,86535.0,0.9856768]
[1764646916249,1e-08,86536.0,86535.0,0.5356768]
[1764646916446,1e-08,86536.0,86535.0,0.9356768]
[1764646916745,1e-08,86536.0,86535.0,0.5356768]
[1764646917245,1e-08,86536.0,86535.0,0.9356768]
[1764646917450,1e-08,86536.0,86535.0,1.2256768]
[1764646920451,0.00999999,86610.0,86590.0,0.16332]
[1764646920452,0.15998,86591.0,86590.0,0.16332]
[1764646920748,0.43904,86605.0,86604.0,0.1748676]
[1764646920948,0.3608,86616.0,86615.0,0.16332]
[1764646921149,0.13023028,86634.0,86621.0,0.1748652]
[1764646921150,0.07824,86622.0,86621.0,0.1748652]
[1764646921346,0.0473,86634.0,86628.0,0.0115443]
[1764646921648,0.15998,86629.0,86628.0,0.16332]
[1764646921848,0.17998,86629.0,86628.0,0.16332]
[1764646922146,0.15998,86629.0,86628.0,0.16332]
[1764646922353,0.3608,86647.0,86628.0,0.16332]
[1764646922548,0.17625,86636.0,86635.0,0.3608]
[1764646923641,0.62625,86636.0,86635.0,0.3608]
[1764646924038,0.33625,86636.0,86635.0,0.3608]
[1764646924445,0.17625,86636.0,86635.0,0.5372]
[1764646925142,0.17625,86643.0,86642.0,0.1764]
[1764646925343,0.18625,86643.0,86642.0,0.5372]
[1764646926048,0.46625,86643.0,86642.0,0.44306]
[1764646926242,0.46625,86643.0,86635.0,0.5372]
[1764646926243,0.17625,86636.0,86635.0,0.5372]
[1764646926447,0.09524,86665.0,86664.0,0.1764]
[1764646926645,0.09524,86665.0,86662.0,0.5487398]
[1764646926646,0.17625,86663.0,86662.0,0.5487398]
[1764646926851,0.17625,86670.0,86669.0,0.1879389]
[1764646927053,0.05564,86680.0,86678.0,0.0115377]
[1764646927054,0.17625,86679.0,86678.0,0.0115377]
[1764646927362,0.17625,86678.0,86677.0,0.3608]
[1764646927553,0.17625,86684.0,86678.0,0.0115377]
[1764646927743,0.17625,86678.0,86677.0,0.3608]
[1764646928057,0.29625,86678.0,86677.0,0.5372]
[1764646928449,0.17625,86678.0,86677.0,0.5372]
[1764646929251,0.17625,86678.0,86677.0,0.3608]
[1764646929252,0.56625,86678.0,86677.0,0.3608]
[1764646929449,0.17625,86673.0,86672.0,0.00017308]
[1764646929649,0.17625,86673.0,86672.0,0.08243308]
[1764646929845,0.28625,86673.0,86672.0,0.08243308]
[1764646930045,0.28625,86673.0,86672.0,0.17657308]
[1764646930352,0.17625,86673.0,86672.0,0.17657308]
[1764646930750,0.17625,86673.0,86672.0,0.08243308]
[1764646931757,0.17625,86673.0,86672.0,0.00017308]
[1764646931964,0.56625,86673.0,86672.0,0.00017308]
[1764646932263,0.28625,86673.0,86672.0,0.00017308]
[1764646932559,0.17625,86673.0,86672.0,0.00017308]
[1764646932745,0.49625,86673.0,86672.0,0.00017308]
[1764646935948,0.25625,86673.0,86672.0,0.00017308]
[1764646936149,0.57625,86673.0,86672.0,0.00017308]
[1764646937550,0.33625,86673.0,86672.0,0.00017308]
[1764646939062,0.54625,86673.0,86672.0,0.00017308]
[1764646939459,0.04757,86661.0,86658.0,0.3608]
[1764646939658,0.17625,86659.0,86658.0,0.3608]
[1764646939852,0.3608,86673.0,86672.0,0.1764]
[1764646939853,0.08101,86673.0,86672.0,0.1764]
[1764646940059,0.17625,86682.0,86681.0,0.0115373]
[1764646940258,0.17625,86682.0,86681.0,0.3723373]
[1764646940461,0.17625,86682.0,86681.0,0.5487373]
[1764646940664,0.23189,86697.0,86696.0,0.0115353]
[1764646940864,0.41189,86697.0,86696.0,0.0115353]
[1764646941161,0.68189,86697.0,86696.0,0.0115353]
[1764646941369,0.00017308,86705.0,86704.0,0.1879343]
[1764646941669,0.00017308,86705.0,86704.0,0.5487343]
[1764646943568,8e-08,86705.0,86704.0,0.9987343]
[1764646943870,0.08101,86740.0,86739.0,0.1764]
[1764646944072,0.17625,86731.0,86730.0,0.3608]
[1764646944272,0.55625,86731.0,86730.0,0.44306]
[1764646944567,0.3608,86752.0,86742.0,0.1879292]
[1764646944778,0.97705,86752.0,86739.0,0.3608]
[1764646945063,0.17625,86739.0,86738.0,0.00017296]
[1764646945374,0.28625,86739.0,86738.0,0.00017296]
[1764646945868,0.58525,86739.0,86738.0,0.00017296]
[1764646946071,0.31525,86739.0,86738.0,0.00017296]
[1764646946267,0.4,86739.0,86738.0,0.17657296]
[1764646946458,0.011527,86759.0,86743.0,0.011529]
[1764646946655,0.08101,86743.0,86742.0,0.0115291]
[1764646946867,0.11101,86743.0,86742.0,0.1879291]
[1764646947266,0.03,86743.0,86742.0,0.1879291]
[1764646947470,0.17625,86753.0,86752.0,0.0937878]
[1764646947677,0.17625,86760.0,86759.0,0.0115269]
[1764646947863,0.60625,86760.0,86759.0,0.0115269]
[1764646948269,0.36625,86760.0,86759.0,0.0115269]
[1764646948470,0.36625,86760.0,86759.0,0.0937869]
[1764646948665,0.36625,86760.0,86759.0,0.08226]
[1764646948873,0.08101,86759.0,86758.0,0.1764]
[1764646949171,0.34101,86759.0,86758.0,0.5372]
[1764646950171,0.34101,86759.0,86751.0,0.3608]
[1764646950172,0.17625,86752.0,86751.0,0.3608]
[1764646950472,0.17625,86741.0,86739.0,0.3608]
[1764646950686,0.17625,86740.0,86739.0,0.3608]
[1764646950874,0.38625,86740.0,86739.0,0.44306]
[1764646951074,0.38625,86740.0,86739.0,0.3608]
[1764646951483,0.1877795,86740.0,86738.0,0.00017296]
[1764646951685,0.17923,86739.0,86738.0,0.00017296]
[1764646951878,0.57923,86739.0,86738.0,0.00017296]
[1764646952683,0.18072,86732.0,86731.0,0.3608]
[1764646952884,0.18072,86732.0,86718.0,0.3723324]
[1764646952885,0.17863,86719.0,86718.0,0.3608]
[1764646953192,0.25863,86719.0,86718.0,0.4632224]
[1764646953483,0.25863,86719.0,86718.0,0.45169]
[1764646954392,0.53863,86719.0,86718.0,0.3608]
[1764646955079,0.17863,86711.0,86710.0,0.36097296]
[1764646955388,0.19863,86711.0,86710.0,0.36097296]
[1764646955588,0.29863,86711.0,86710.0,0.45186296]
[1764646955883,0.20774,86711.0,86710.0,0.53854296]
[1764646956888,0.17863,86724.0,86723.0,0.0115317]
[1764646957189,0.19863,86724.0,86723.0,0.0115317]
[1764646957791,0.08774,86720.0,86719.0,0.53837]
[1764646957989,0.10774,86720.0,86719.0,0.53837]
[1764646958284,0.02,86720.0,86719.0,0.53837]
[1764646958476,0.00017296,86727.0,86726.0,0.1891013]
[1764646958677,0.00017296,86727.0,86726.0,0.5499013]
[1764646958876,0.08791296,86727.0,86726.0,0.5499013]
[1764646960087,0.08791296,86727.0,86726.0,0.53837]
[1764646960290,0.62880296,86727.0,86726.0,0.3608]
[1764646960889,0.21880296,86727.0,86726.0,0.3608]
[1764646961088,0.21880296,86727.0,86726.0,0.45169]
[1764646961881,0.21880296,86727.0,86726.0,0.3608]
[1764646962190,0.61880296,86727.0,86726.0,0.3608]
[1764646962583,0.1024224,86718.0,86717.0,0.3608]
[1764646962796,0.6101624,86718.0,86717.0,0.3608]
[1764646963681,0.0115333,86711.0,86710.0,0.53854296]
[1764646963887,0.0115333,86711.0,86710.0,0.36097296]
[1764646963888,0.6101633,86711.0,86710.0,0.36097296]
[1764646964398,0.6101633,86711.0,86710.0,0.00017296]
[1764646967276,0.1901648,86700.0,86699.0,0.3608]
[1764646967593,0.2601648,86700.0,86699.0,0.3608]
[1764646967890,0.2601648,86700.0,86699.0,0.53837]
[1764646968996,0.2601648,86700.0,86699.0,0.45169]
[1764646969583,0.63406367,86700.0,86699.0,0.09089]
[1764646969895,0.1901658,86692.0,86691.0,0.36097296]
[1764646970075,0.6101658,86692.0,86691.0,0.36097296]
[1764646972093,0.63407866,86692.0,86691.0,0.00017296]
[1764646972290,0.0992779,86677.0,86676.0,0.17757]
[1764646972488,0.3501679,86677.0,86676.0,0.17757]
[1764646974085,0.08774,86677.0,86676.0,0.17757]
[1764646974291,0.3387365,86692.0,86676.0,0.17757]
[1764646974493,0.02388673,86691.0,86679.0,0.17757]
[1764646974693,0.02388673,86690.0,86679.0,0.17757]
[1764646974885,0.1901673,86682.0,86681.0,0.17757]
[1764646975080,0.46405443,86682.0,86681.0,0.17757]
[1764646975291,0.09944916,86690.0,86689.0,0.17757]
[1764646975487,0.43332832,86690.0,86689.0,0.17757]
[1764646975996,0.02405222,86690.0,86689.0,0.17757]
[1764646976191,0.00017306,86690.0,86689.0,0.17757]
[1764646977085,0.01170916,86690.0,86689.0,0.17757]
[1764646977795,0.44170916,86690.0,86689.0,0.17757]
[1764646978002,0.1901665,86687.0,86686.0,0.3608]
[1764646978189,0.5801665,86687.0,86686.0,0.3608]
[1764646978591,0.5801665,86687.0,86686.0,0.45169]
[1764646978801,0.5801665,86687.0,86686.0,0.53837]
[1764646979590,0.43545557,86687.0,86680.0,0.05429]
[1764646979800,0.0531973,86681.0,86680.0,0.05429]
[1764646980000,0.4631973,86681.0,86680.0,0.05429]
[1764646980188,0.4631973,86681.0,86680.0,0.23186]
[1764646981102,0.04166,86669.0,86668.0,0.00017306]
[1764646981299,0.83246,86669.0,86668.0,0.00017306]
[1764646981498,0.0115413,86651.0,86650.0,0.00014965]
[1764646981701,0.0115408,86655.0,86654.0,0.17757]
[1764646982001,0.3832008,86655.0,86654.0,0.17757]
[1764646982200,0.04,86655.0,86652.0,0.3608]
[1764646982387,0.04,86655.0,86654.0,0.17757]
[1764646982593,0.00017306,86662.0,86661.0,0.19195]
[1764646982895,0.20017306,86662.0,86661.0,0.19195]
[1764646983096,0.00017306,86662.0,86661.0,0.19195]
[1764646986112,0.45017306,86662.0,86661.0,0.19195]
[1764646986600,0.54807306,86662.0,86661.0,0.19195]
[1764646986806,0.1094408,86655.0,86654.0,0.55275]
[1764646986999,0.2294408,86655.0,86654.0,0.55275]
[1764646987306,0.4594408,86655.0,86654.0,0.55275]
[1764646987700,0.1094413,86651.0,86645.0,0.00017306]
[1764646987899,0.5194413,86651.0,86645.0,0.00017306]
[1764646988090,0.5194413,86651.0,86650.0,0.08981965]
[1764646988293,0.5194413,86651.0,86650.0,0.00014965]
[1764646989795,0.060492,86646.0,86645.0,0.00017306]
[1764646990006,0.499442,86646.0,86645.0,0.00017306]
[1764646990301,0.499442,86646.0,86632.0,0.3608]
[1764646990505,0.1094437,86633.0,86632.0,0.3608]
[1764646990697,0.5294437,86633.0,86632.0,0.3608]
[1764646991010,0.00010488,86633.0,86632.0,0.55275]
[1764646992004,0.00017306,86641.0,86640.0,0.19195]
[1764646992195,0.00017306,86641.0,86640.0,0.55275]
[1764646992397,0.53844,86659.0,86658.0,0.24963]
[1764646992708,0.64844,86659.0,86658.0,0.24963]
[1764646993098,0.64848477,86659.0,86658.0,0.24963]
[1764646994810,0.42004477,86659.0,86658.0,0.24963]
[1764646995312,0.17004477,86659.0,86658.0,0.24963]
[1764646995699,0.17004477,86659.0,86658.0,0.2611704]
[1764646996409,0.54848477,86659.0,86658.0,0.24963]
[1764646996613,0.31848477,86659.0,86658.0,0.24963]
[1764646996998,0.22004477,86659.0,86658.0,0.24963]
[1764646997200,0.23158497,86659.0,86658.0,0.24963]
[1764646997399,0.33002497,86659.0,86658.0,0.14735]
[1764646997601,0.33002497,86659.0,86658.0,0.05768]
[1764646997908,0.33002497,86659.0,86658.0,0.14735]
[1764646998106,0.33002497,86659.0,86656.0,0.3608]
[1764646998107,0.09844,86657.0,86656.0,0.3608]
[1764646998314,0.26844,86657.0,86656.0,0.55275]
[1764646998623,0.21922,86657.0,86656.0,0.55275]
[1764646999110,0.24316538,86657.0,86656.0,0.55275]
[1764646999315,0.29238538,86657.0,86656.0,0.55275]
[1764646999706,0.09844,86651.0,86650.0,0.00017306]
[1764647000016,0.51002607,86651.0,86650.0,0.00017306]
[1764647000218,0.51002607,86651.0,86650.0,0.05785306]
[1764647000407,0.51002607,86651.0,86650.0,0.14752306]
[1764647002118,0.51002607,86651.0,86650.0,0.24980306]
[1764647002813,0.51002607,86651.0,86650.0,0.00017306]
[1764647003007,0.53399158,86651.0,86650.0,0.00017306]
[1764647003407,0.53399158,86651.0,86650.0,0.14752306]
[1764647003612,0.48477158,86651.0,86650.0,0.24980306]
[1764647004517,0.02401028,86651.0,86650.0,0.24980306]
[1764647004717,4.477e-05,86651.0,86650.0,0.24980306]
[1764647006423,0.53836,86677.0,86666.0,0.2034893]
[1764647006917,0.00017306,86667.0,86666.0,0.2034893]
[1764647008705,0.10366285,86690.0,86666.0,0.2034893]
[1764647008706,0.09844,86687.0,86680.0,0.05768]
[1764647008911,0.09844,86681.0,86680.0,0.24963]
[1764647009121,0.4599773,86681.0,86680.0,0.24963]
[1764647009515,0.06187584,86687.0,86686.0,0.19195]
[1764647009718,0.00017306,86695.0,86694.0,0.19195]
[1764647009916,0.35230903,86695.0,86694.0,0.19195]
[1764647010220,0.02017306,86695.0,86694.0,0.19195]
[1764647011018,0.02144,86703.0,86702.0,0.23546]
[1764647011222,0.41144,86703.0,86702.0,0.23546]
[1764647012020,0.39,86703.0,86702.0,0.23546]
[1764647012621,0.27063787,86709.0,86708.0,0.19166]
[1764647012923,0.32271,86709.0,86708.0,0.19166]
[1764647013425,0.00017306,86711.0,86708.0,0.55246]
[1764647013634,0.00017306,86711.0,86710.0,0.25238]
[1764647013815,0.29017306,86711.0,86710.0,0.25238]
[1764647014620,0.00017306,86711.0,86710.0,0.2639135]
[1764647017219,0.3608,86736.0,86735.0,0.19166]
[1764647017521,0.5408,86736.0,86735.0,0.19166]
[1764647017716,0.59369,86736.0,86735.0,0.19166]
[1764647019035,0.7908,86736.0,86735.0,0.19166]
[1764647019334,0.0576322,86764.0,86735.0,0.19166]
[1764647019335,0.10578,86756.0,86755.0,0.08594]
[1764647019630,0.10578,86751.0,86750.0,0.25238]
[1764647019839,0.29578,86751.0,86750.0,0.25238]
[1764647020014,0.14512799,86797.0,86757.0,0.06072]
[1764647020015,0.0115258,86768.0,86757.0,0.06072]
[1764647020219,0.7423258,86768.0,86757.0,0.06072]
[1764647020514,0.7423258,86768.0,86761.0,0.08594]
[1764647020515,0.0644166,86762.0,86761.0,0.08594]
[1764647020720,0.4873066,86762.0,86761.0,0.19166]
[1764647021324,0.47578,86762.0,86761.0,0.19166]
[1764647022031,0.37,86762.0,86761.0,0.2031867]
[1764647022234,0.05289,86780.0,86779.0,0.14666]
[1764647022416,0.48578,86780.0,86771.0,0.00017294]
[1764647022620,0.05289,86772.0,86771.0,0.19183294]
[1764647022822,0.30289,86772.0,86771.0,0.19183294]
[1764647023029,0.011522,86796.0,86779.0,0.06072]
[1764647023218,0.38,86790.0,86789.0,0.19166]
[1764647023419,0.10578,86802.0,86801.0,0.06072]
[1764647023730,0.49578,86802.0,86801.0,0.06072]
[1764647024325,0.39,86802.0,86801.0,0.25238]
[1764647024629,0.3608,86824.0,86817.0,0.19166]
[1764647024827,0.45190056,86818.0,86817.0,0.19166]
[1764647025723,0.01190056,86818.0,86817.0,0.19166]
[1764647026436,0.37919966,86818.0,86817.0,0.08594]
[1764647026929,0.27341966,86818.0,86817.0,0.129306]
[1764647027134,0.27341966,86818.0,86808.0,0.06072]
[1764647027135,0.0115201,86811.0,86810.0,0.19166]
[1764647027319,0.4015201,86811.0,86810.0,0.19166]
[1764647027519,0.4115201,86811.0,86810.0,0.19166]